Cogmind - Beta 14 @@@ ROGUE MODE // 2024.08.31 @ 23:05:51 Player: grhkm Result: Destroyed by G-47 Trooper with Particle Gun Performance ------------- Evolutions (2) 1000 Regions Visited (3) 600 Robots Destroyed (42) 210 Value Destroyed (1480) 1480 Prototype IDs (1) 20 Alien Tech Used (0) 0 Bonus (0) 0 TOTAL SCORE: 3310 Bonus ------- None Cogmind --------- Core Integrity 0/550 Matter 101/300 Energy 60/100 System Corruption 0% Temperature Cool (14) Movement Core (50) Location -8/Materials Parts ------- > --- POWER (1) -------- (None) > --- PROPULSION (4) --- (None) > --- UTILITY (4) ------ Terrain Scan Processor Hacking Suite > --- WEAPON (2) ------- Small Laser > --- INVENTORY (5) ---- Large Storage Unit Peak State ------------ > --- POWER ------------ Backup Power I > --- PROPULSION ------- Improved Aluminum Leg Improved Aluminum Leg Titanium Leg Improved Hover Unit > --- UTILITY ---------- Heat Sink Large Storage Unit Terrain Scan Processor > --- WEAPON ----------- Heavy Assault Rifle Mini Grenade Launcher > --- INVENTORY -------- Hacking Suite Small Laser Field Laser Advanced Beam Rifle Autogun Heavy Assault Cannon Mini Grenade Launcher Mining Laser [Rating: 20] Favorites ----------- Power Backup Power I Engine Backup Power I Propulsion Aluminum Leg Leg Aluminum Leg Hover Unit Improved Hover Unit Utility Large Storage Unit Device Heat Sink Storage Large Storage Unit Processor Terrain Scan Processor Hackware Hacking Suite Protection Core Shielding Weapon Assault Rifle Energy Gun EM Pulse Gun Ballistic Gun Assault Rifle Ballistic Cannon Light Cannon Launcher Mini Grenade Launcher Build | -11 -10 -9 -8 ------- Run | Yrd Mat Mat Mat Slots Evolved 4 | . . 2 2 Power . | . . . . Propulsion 2 | . . 1 1 Utility 2 | . . 1 1 Weapon . | . . . . Parts Attached 46 | 6 6 16 18 Power 4 | 1 1 1 1 Engine 4 | 1 1 1 1 Core . | . . . . Reactor . | . . . . Propulsion 17 | 2 3 7 5 Treads . | . . . . Leg 16 | 2 3 7 4 Wheel . | . . . . Hover 1 | . . . 1 Flight . | . . . . Utility 8 | 1 1 4 2 Device 1 | . . 1 . Storage 2 | 1 1 . . Processor 1 | . . . 1 Hackware 1 | . . . 1 Protection 3 | . . 3 . Artifact . | . . . . Weapon 17 | 2 1 4 10 Energy Gun 6 | 1 . 1 4 Energy Cannon . | . . . . Ballistic Gun 8 | 1 1 2 4 Ballistic Cannon 1 | . . . 1 Launcher 2 | . . 1 1 Special Weapon . | . . . . Impact Weapon . | . . . . Slashing Weapon . | . . . . Piercing Weapon . | . . . . Special Melee Weapon . | . . . . Unidentified Prototypes 1 | . . . 1 Parts Lost 27 | . 2 7 18 Power 4 | . 1 1 2 Propulsion 8 | . . 1 7 Utility 4 | . . 2 2 Weapon 11 | . 1 3 7 Highest Loss Streak 6 | . 2 3 6 To Critical Strikes . | . . . . Average Slot Usage (%) 82 | . 90 91 70 Engine 8 | . 7 8 8 Leg 24 | . 28 32 17 Device 1 | . . . 4 Storage 14 | . 26 11 8 Processor 3 | . . . 8 Hackware 1 | . . . 4 Protection 6 | . . 18 3 Energy Gun 4 | . 7 3 3 Ballistic Gun 12 | . 19 16 4 Launcher 2 | . . . 6 Peak Build Rating 20 | 6 8 15 20 Average Rating 11 | 4 6 11 14 On Entrance 7 | . 6 8 15 Naked Turns . | . . . . Heaviest Build 38 | 14 34 38 34 Greatest Support 49 | 20 20 39 49 Greatest Overweight (x) 8 | . 1 1 8 Average Overweight (x) . | . . . 1 Largest Inventory Capacity 15 | 8 15 15 15 Average Capacity 14 | 7 14 15 14 Most Carried 13 | 3 12 13 11 Average Carried 7 | 1 6 8 7 Final Capacity 15 | 8 15 15 5 Final Carried 10 | 3 9 10 1 Class Distribution -------------------- 85% | Mutant 14% | Scavenger-Mutant Dominant Class ---------------- Mutant | -10/Materials Mutant | -9/Materials Mutant | -8/Materials Resources | -11 -10 -9 -8 ----------- Run | Yrd Mat Mat Mat Matter Collected 958 | 176 244 322 216 Remotely . | . . . . Salvage Created 1414 | . 373 690 351 Parts 79 | . 21 37 21 Haulers Intercepted . | . . . . Recyclers Shooed . | . . . . Parts Field Recycled . | . . . . Retrieved Matter . | . . . . Parts Self-Destructed . | . . . . Prevented . | . . . . Kills | -11 -10 -9 -8 ------- Run | Yrd Mat Mat Mat Combat Hostiles Destroyed 37 | . 8 20 9 Guns 28 | . 8 16 4 AOE 9 | . . 4 5 Classes Destroyed 8 | . 4 2 2 Builder 2 | . 1 . 1 Recycler 1 | . 1 . . Watcher 2 | . . . 2 Swarmer 4 | . 2 2 . Grunt 26 | . 6 15 5 Brawler 1 | . . 1 . Sentry 4 | . . 2 2 Hunter 2 | . . . 2 Best Kill Streak 7 | . 4 7 4 Combat Bots Only 7 | . 4 7 4 Max Kills in Single Turn 2 | . 1 2 2 Gunslinging . | . . . . Exploded 2 | . . 2 2 Melee . | . . . . Uniques/NPCs Destroyed . | . . . . Combat | -11 -10 -9 -8 -------- Run | Yrd Mat Mat Mat Hostile Shots Fired 368 | . 63 149 156 Missed 114 | . 18 56 40 Damage Taken 3455 | . 421 1053 1981 Core 780 | . 60 163 557 Absorbed by Shields . | . . . . Redirected to Shielding 101 | . . 84 17 Regen/Repaired (Parts) 40 | . . . 40 Core Remaining (%) 78 | 100 76 59 . Volleys Fired 152 | . 35 71 46 Largest 2 | . 2 2 2 Hottest 124 | . 60 63 124 Shots Fired 233 | . 67 104 62 Gun 205 | . 67 101 37 Cannon 5 | . . . 5 Launcher 23 | . . 3 20 Special . | . . . . Kinetic 143 | . 42 79 22 Thermal 20 | . . . 20 Explosive 23 | . . 3 20 Electromagnetic 47 | . 25 22 . Robot Hit Streak 14 | . 7 9 14 Robot Miss Streak 5 | . 4 5 3 Penetration Max . | . . . . Secondary Targets 1 | . 1 . . Max Gunslinging Chain 1 | . 1 . . Shots Hit Robots 158 | . 44 70 44 Core Hits 83 | . 16 37 30 Critical Kills . | . . . . Critical Parts Destroyed 1 | . . 1 . Critical Strikes 1 | . . 1 . Destroy 1 | . . 1 . Melee Attacks . | . . . . Impact . | . . . . Slashing . | . . . . Piercing . | . . . . Sneak Attacks . | . . . . Combat Hostiles . | . . . . Follow-up Attacks . | . . . . Damage Inflicted 3298 | . 557 1219 1522 Guns 1851 | . 557 849 445 Cannons 55 | . . . 55 Explosions 1392 | . . 370 1022 Melee . | . . . . Ramming . | . . . . Kinetic 1350 | . 355 734 261 Thermal 269 | . . 30 239 Explosive 1362 | . . 340 1022 Electromagnetic 317 | . 202 115 . Impact . | . . . . Slashing . | . . . . Piercing . | . . . . Highest Corruption 1 | . . 1 . Average Corruption 1 | . . 1 . Corruption Purged . | . . . . Corruption Blocked . | . . . . Effects 2 | . . 2 . Message Errors 1 | . . 1 . Data Loss (major) 1 | . . 1 . Overload Shots . | . . . . Overflow Damage 33 | . . 7 26 Projectiles . | . . . . Explosions 33 | . . 7 26 Melee . | . . . . Knockbacks . | . . . . Impact . | . . . . Kinetic . | . . . . Secondary . | . . . . Self-Inflicted Damage 291 | . . . 291 Shots 11 | . . . 11 Rammed . | . . . . Targets Rammed 1 | . 1 . . Kicked 1 | . 1 . . Crushed . | . . . . Highest Temperature 93 | . 18 32 93 Average Temperature 14 | . 6 8 25 Received Heat Transfer 1200 | . 138 378 684 Siege Activations . | . . . . Robots Corrupted . | . . . . Combat Hostiles . | . . . . Parts Fried . | . . . . Impact Corruptions . | . . . . Robots Melted . | . . . . Combat Hostiles . | . . . . Parts Melted . | . . . . Heat Transferred 558 | . . 50 508 Parts Sabotaged . | . . . . Parts Stolen . | . . . . Parts Stripped . | . . . . Power Chain Reactions 1 | . . 1 . Alert | -11 -10 -9 -8 ------- Run | Yrd Mat Mat Mat Peak Influence 503 | . 141 364 503 Initial 135 | . . 16 135 Average 177 | . 32 194 300 Maximum Alert Level 2 | . . 1 2 Low Security (%) 50 | 100 100 42 12 Level 1 45 | . . 57 77 Level 2 3 | . . . 10 Level 3 . | . . . . Level 4 . | . . . . Level 5 . | . . . . High Security . | . . . . Max Security . | . . . . Squads Dispatched 8 | . 3 2 3 Investigation 2 | . 1 1 . Extermination . | . . . . Reinforcement 6 | . 2 1 3 Assault . | . . . . Garrison . | . . . . Intercept . | . . . . Searches Triggered . | . . . . Construction Impeded 1 | . . . 1 Haulers Reinforced . | . . . . Active Scanning Responses . | . . . . Cargo Convoy Interrupts . | . . . . Stealth | -11 -10 -9 -8 --------- Run | Yrd Mat Mat Mat Distress Signals 2 | . . . 2 Communications Jammed . | . . . . Distress Signals . | . . . . Times Spotted 60 | . 14 21 25 Peak Tracking Total 7 | . 5 6 7 Tactical Retreats 1 | . . . 1 Traps | -11 -10 -9 -8 ------- Run | Yrd Mat Mat Mat Traps Triggered 1 | . . 1 . Indirectly . | . . . . Trap Hack Attempts . | . . . . Triggered . | . . . . Disarmed . | . . . . Reprogrammed . | . . . . Reused . | . . . . Traps Extracted . | . . . . Installed . | . . . . Triggered . | . . . . Machines | -11 -10 -9 -8 ---------- Run | Yrd Mat Mat Mat Machines Disabled 7 | . . 3 4 Max in Single Turn 2 | . . 1 2 Machines Repaired . | . . . . Machines Dismantled . | . . . . Machines Sabotaged . | . . . . Overloaded Fab Kills . | . . . . Hacking | -11 -10 -9 -8 --------- Run | Yrd Mat Mat Mat Machines Accessed 3 | . 1 1 1 Terminals 1 | . . 1 . Fabricators . | . . . . Repair Stations 1 | . . . 1 Recycling Units 1 | . 1 . . Scanalyzers . | . . . . Garrison Access . | . . . . Total Hacks 7 | . 3 2 2 Successful 5 | . 3 . 2 Failed 2 | . . 2 . Catastrophic . | . . . . Database Lockouts . | . . . . Manual . | . . . . Terminals 2 | . . 2 . Fabricators . | . . . . Repair Stations 2 | . . . 2 Recycling Units 3 | . 3 . . Scanalyzers . | . . . . Garrison Access . | . . . . Terminal Hacks . | . . . . Fabricator Hacks . | . . . . Repair Station Hacks 2 | . . . 2 Scan Component 1 | . . . 1 Repair 1 | . . . 1 Recycling Unit Hacks 3 | . 3 . . Recycle Component 3 | . 3 . . Scanalyzer . | . . . . Garrison Access Hacks . | . . . . Unauthorized Hacks . | . . . . Terminals . | . . . . Fabricators . | . . . . Repair Stations . | . . . . Recycling Units . | . . . . Scanalyzers . | . . . . Garrison Access . | . . . . Data Cores Recovered . | . . . . Used . | . . . . Hacking Detections 1 | . 1 . . Full Trace Events 1 | . 1 . . Feedback Events . | . . . . Feedback Blocked . | . . . . Robot Schematics Acquired . | . . . . Robots Built . | . . . . Authchips . | . . . . Time . | . . . . Total Robot Build Rating . | . . . . Part Schematics Acquired . | . . . . Parts Built . | . . . . Authchips . | . . . . Time . | . . . . Total Part Build Rating . | . . . . Parts Repaired 1 | . . . 1 Time 32 | . . . 32 Parts Recycled 3 | . 3 . . Recycled Matter . | . . . . Retrieved Matter . | . . . . Retrieved Components . | . . . . Parts Scanalyzed . | . . . . Part Schematics Acquired . | . . . . Parts Damaged . | . . . . Bothacking | -11 -10 -9 -8 ------------ Run | Yrd Mat Mat Mat Used RIF Installer . | . . . . Robots Hacked . | . . . . Non-combat . | . . . . Combat . | . . . . Robot Hacks Applied . | . . . . Relay Couplers Released . | . . . . Fabnet Peak Effective % . | . . . . Robots Rewired . | . . . . Allies Hacked . | . . . . Hacks Repelled . | . . . . Allies | -11 -10 -9 -8 -------- Run | Yrd Mat Mat Mat Total Allies . | . . . . Largest Group . | . . . . Highest-Rated Group . | . . . . Highest-Rated Ally . | . . . . Total Orders . | . . . . Ally Attacks . | . . . . Total Damage . | . . . . Kills . | . . . . Allies Corrupted . | . . . . Allies Melted . | . . . . Intel | -11 -10 -9 -8 ------- Run | Yrd Mat Mat Mat Robot Analysis Total . | . . . . Derelict Logs Recovered . | . . . . Drone Launches . | . . . . Drone Recoveries . | . . . . Exploration | -11 -10 -9 -8 ------------- Run | Yrd Mat Mat Mat Turns Passed 2250 | 87 691 616 856 Spaces Moved 1092 | 67 325 327 373 Core 124 | 6 . . 118 Treads . | . . . . Legs 942 | 61 325 327 229 Wheels . | . . . . Hover 26 | . . . 26 Flight . | . . . . Fastest Speed 50 | 50 120 120 50 Average Speed 161 | 113 176 123 189 Slowest Speed 450 | 120 190 190 450 Overloaded Moves . | . . . . Propulsion Burnouts . | . . . . Robots Hopped . | . . . . Cave-ins Triggered . | . . . . Exploration Rate (%) 23 | 4 43 24 21 Regions Visited 3 Branch Regions . Pre-discovered Areas . | . . . . Known Exits Taken . | . . . . Unknown Exits Taken 3 | 1 1 1 . Scrap Searched . | . . . . Spaces Dug . | . . . . Terrain Destroyed 139 | . . 13 126 Melee . | . . . . Projectile . | . . . . AOE 139 | . . 13 126 Terrain Rammed . | . . . . Walls Destroyed . | . . . . Machines Disabled . | . . . . Actions | -11 -10 -9 -8 --------- Run | Yrd Mat Mat Mat Total 1357 | 75 374 441 467 Wait 26 | . 2 10 14 Move 1089 | 66 324 326 373 Hop . | . . . . Pick Up 23 | 3 6 9 5 Fast Attach 18 | 6 3 4 5 Attach 18 | . . 6 12 Detach 5 | . . 1 4 Swap 10 | . 3 6 1 Drop 15 | . . 8 7 Fire 152 | . 35 71 46 Melee . | . . . . Ram . | . . . . Kick 1 | . 1 . . Crush . | . . . . Escape Stasis . | . . . . Rewire . | . . . . Trap . | . . . . Miscellaneous . | . . . . Route ------- -11/Scrapyard -10/Materials -9/Materials -8/Materials History --------- Turn | Location | Event 6 | -11/Scrapyard | Discovered new exit (range 16) 88 | -11/Scrapyard | Entered Materials 306 | -10/Materials | Build established: Mutant 546 | -10/Materials | Discovered new exit (range 11) 779 | -10/Materials | Entered another Materials area 779 | -9/Materials | Evolved 2 slots: Propulsion x1, Utility x1 960 | -9/Materials | Destroyed 7 combat bots 1051 | -9/Materials | Lost 3 parts (1p1n1u) 1386 | -9/Materials | Discovered new exit (range 7) 1395 | -9/Materials | Entered another Materials area 1395 | -8/Materials | Evolved 2 slots: Propulsion x1, Utility x1 1471 | -8/Materials | Lost 3 parts (1p1n1w) 1515 | -8/Materials | Repaired Mni. Grenade Launcher 1871 | -8/Materials | Lost 3 parts (2n1u) 2199 | -8/Materials | Core integrity fell below 50% 2241 | -8/Materials | Core integrity fell below 20% 2251 | -8/Materials | Destroyed by G-47 Trooper with Particle Gun Last Messages --------------- Dropped Hvy. Assault Cannon. Acquired Lgt. Cannon. [Achievement: Oops] Hvy. Assault Rifle destroyed. Backup Power I destroyed. Lgt. Cannon destroyed. Critical hit (Burn: +37). Autogun destroyed. Critical hit (Burn: +37). Acquired 24 matter. Identified Adv. Beam Rifle. G-47 Trooper destroyed. Acquired 48 matter. Acquired 2 matter. Acquired 31 matter. Critical hit (Burn: +37). Field Laser destroyed. Adv. Beam Rifle destroyed. Critical hit (Burn: +37). G-47 Trooper destroyed. Map ----- +----------------------------------------------------+ | | | | | | | | | | | | | | | ?????????????????#########?????????????##########? | | ?????????????????# | #?????????????# ! #? | | ?????????????????# "T"] ]#?????????????# #? | | ?????????????????# """ #?????????????#!! #? | | ?????????????????# #?????????????#! ## | | ?????????????????###/##+##?????????????# # | | ???????????????????# % %#????#####?##+## """ ! # | | ???????????????????# #????# # #?# + """ # | | ?????????##+######## ############ ## """ # | | ????# + ## =# | | ????# #### ############ # ####+##### | | ???????????????# ## """ """ # # # ##### | | ???????????????# ## """ """ # | | ???????????????# ## """ """ # | | ???????????????# ## # ##### ##### | | ???????????????# ## # #### ## ###### | | ???????????????# ## ! !# #??# # # # | | ???????????????# ## g%g ! # ##### # + "" # | | ??????????????## ## g%@ ############ # "" # | | ??????????????# ###r########## # "T # | | ??????????????# * # "" # | | ??????????????# [ = # "" # | | ??????????????# [ # # | | ??????????????# # * *[ # # | | ??????????????####### " % + [ # | | ????????????????????# %!* == ! ###### | | ????????????????????# !!* == ##???? | | ????????????????????# !* == ##???? | | ??????????????????? ###??? | | ????????????????? # #### | | ???????????????? " #### # !!/ | | ??????????????? T ############### # # // | | ?????????????? " #???? + # / | | ?????????????? #???? # # | | ?????????????? +???? " # + | | ???????????????? !!! #????? # "" # # | | ?????????????????? !!! #????? ?# """"" # # | | ????????????????????! ?????????# """"" + + | | ?????????????????????????????????# """ #+# | | ?????????????????????????????????# =] | | ?????????????????????????????????# # | | ?????????????????????????????????# """ # | | ?????????????????????????????????# """ ## | +----------------------------------------------------+ Best States ------------- Heat Dissipation 41 Energy Generation 12 Energy Capacity 265 Matter Stores 300 Matter Capacity 300 Sight Range 16 Terrain Scan Density 85 Armor Coverage 150 Core Shielding 20 Propulsion Shielding 33 Evasion (%) 55 Offensive Hacking 10 Item Schematics ----------------- None Robot Schematics ------------------ None Fabricated ------------ Nothing Alien Tech Used ----------------- None Achievements -------------- Let's See Who's Tougher Oops Challenges ------------ None Game ------ Seed AerolevGammaBoregun Manual? 0 Play Time 00:23:48 Cumulative 1.6 hours Start 2024.08.31 @ 22:43:15 End 2024.08.31 @ 23:05:51 Sessions 1 Manual Loads 0 Difficulty Rogue Special Mode None Game No. 5 Rogue 5 Adventurer 0 Explorer 0 Win Type - Total 0 Types 0/0/0/0/0/0/0/0/0 Lore% 0 Gallery% 4 Achievement% 3 Wizard Run 0 Options --------- Layout 1 ASCII 1 Keyboard 1 Movement Arrows Keybinds 0 Fullscreen 1 Font 16/SmallcapsGlow Map View 50x40 Zoom Use 0% Tactical HUD 0 Map Filters NONE Filters NONE Steam 1 RUN: 503cc483-14d9-4edb-be95-97d1265e7f2d